bitfinex-derivatives/quotes_ETHF0:USTF0_20250520
["timestamp","ask_amount","ask_price","bid_price","bid_amount"]
[1747766670231,2.02181,2472.1,2471.4,0.32349004]
[1747766670431,11.51574397,2471.5,2471.4,0.32349004]
[1747766670829,4.0166,2471.9,2471.4,3.53129004]
[1747766671032,3.2078,2471.9,2471.5,15.1563]
[1747766671226,3.21386673,2471.9,2471.5,15.16236673]
[1747766671527,3.21386673,2471.9,2471.5,4.19217673]
[1747766671729,0.00606673,2471.9,2471.7,3.2078]
[1747766671929,0.00606673,2471.9,2471.8,1.3952]
[1747766672331,0.00606673,2471.9,2471.8,3.417975]
[1747766672533,0.81484673,2471.9,2471.8,3.417975]
[1747766672737,0.00606673,2471.9,2471.8,3.417975]
[1747766674036,0.00606673,2471.9,2471.8,9.226795]
[1747766674448,4.01634,2472.7,2472.3,0.80864]
[1747766674640,3.2078,2472.7,2472.4,3.0816]
[1747766674830,0.80858,2472.6,2472.4,3.0816]
[1747766675031,0.80859,2472.5,2472.4,5.103805]
[1747766675231,12.32433397,2472.5,2472.4,3.0816]
[1747766676331,3.21386673,2472.7,2472.4,3.0816]
[1747766676531,11.51574397,2472.6,2472.4,3.0816]
[1747766676732,0.80859,2472.5,2472.4,3.0816]
[1747766677140,0.80859,2472.5,2472.4,5.103885]
[1747766679041,13.53802897,2472.5,2472.0,0.80873]
[1747766679236,4.01652,2472.2,2472.1,1.3528]
[1747766679748,0.80885,2471.7,2471.6,15.5028]
[1747766680233,12.32459397,2471.7,2471.6,3.72073999]
[1747766680545,12.32459397,2471.7,2471.6,17.52573999]
[1747766680841,12.32459397,2471.7,2471.6,3.72073999]
[1747766681146,12.32459397,2471.7,2471.6,5.03783999]
[1747766681346,14.34753397,2471.7,2471.6,3.0149]
[1747766681547,12.32459397,2471.7,2471.6,5.03783999]
[1747766681845,13.53868397,2471.7,2471.5,0.00606673]
[1747766682143,0.80905,2471.1,2471.0,1.7355]
[1747766682337,12.32479397,2471.1,2471.0,1.7355]
[1747766682542,12.32479397,2471.1,2471.0,3.75893]
[1747766682745,12.32479397,2471.1,2471.0,0.80908]
[1747766682746,2.02343001,2471.1,2471.0,0.80908]
[1747766683047,0.80905,2471.1,2471.0,2.8325]
[1747766683436,0.80905,2471.1,2471.0,4.1496]
[1747766683841,0.80905,2471.1,2471.0,3.34053]
[1747766684035,12.32479397,2471.1,2471.0,1.3171]
[1747766684250,14.34822398,2471.1,2471.0,1.3171]
[1747766684435,15.68602398,2471.1,2471.0,1.3171]
[1747766684640,0.80911,2470.9,2470.8,0.88046673]
[1747766684946,15.53265397,2470.9,2470.8,6.73e-06]
[1747766685143,17.55624897,2470.9,2470.8,6.73e-06]
[1747766687849,0.80911,2470.9,2470.8,3.41380173]
[1747766688042,3.2078,2471.2,2470.8,3.41380173]
[1747766688237,0.80911,2470.9,2470.8,2.19933673]
[1747766688752,0.80911,2470.9,2470.8,3.41380173]
[1747766688944,0.80911,2470.9,2470.8,3.73749216]
[1747766689949,0.80911,2470.9,2470.8,4.54663216]
[1747766690150,0.80909,2471.0,2470.9,0.8091]
[1747766690354,0.00606673,2471.3,2470.9,1.3558]
[1747766690539,11.5218107,2471.3,2471.0,0.80905]
[1747766690745,0.80901,2471.2,2471.1,2.16484]
[1747766691148,0.00606673,2471.3,2471.2,0.80901]
[1747766691346,0.00606673,2471.3,2471.2,2.16481]
[1747766691651,0.00606673,2471.3,2471.2,4.18808]
[1747766692252,0.00606673,2471.3,2471.2,4.51177043]
[1747766693252,0.8088,2471.9,2471.3,2.02244]
[1747766693552,3.2078,2472.1,2471.7,0.80883]
[1747766693553,12.32456397,2471.8,2471.7,0.80883]
[1747766694049,0.80882,2471.8,2471.7,2.83169]
[1747766695253,0.80882,2471.8,2471.7,2.02286]
[1747766695556,0.80882,2471.8,2471.7,2.34655043]
[1747766696052,0.80882,2471.8,2471.7,2.45853043]
[1747766696247,1.42626673,2472.0,2471.7,2.45853043]
[1747766696248,1.42626673,2472.0,2471.9,0.80878]
[1747766696555,11.51574397,2471.8,2471.7,2.45853043]
[1747766696750,11.51574397,2471.8,2471.7,1.13253043]
[1747766696947,2.23503673,2472.0,2471.9,0.80878]
[1747766697151,4.25781173,2472.0,2471.9,0.80878]
[1747766697345,15.7735557,2472.0,2471.9,0.80878]
[1747766697648,0.80879,2471.9,2471.8,0.80878]
[1747766697851,11.51574397,2471.9,2471.8,0.80878]
[1747766698047,0.00606673,2472.0,2471.9,0.80878]
[1747766698246,0.00606673,2472.0,2471.9,14.61978]
[1747766698453,0.00606673,2472.0,2471.9,16.64247499]
[1747766698748,11.5218107,2472.0,2471.9,2.83147499]
[1747766698952,11.5218107,2472.0,2471.9,3.15516542]
[1747766699350,0.00606673,2472.0,2471.9,3.15516542]
[1747766699853,0.00606673,2472.0,2471.9,16.96616542]
[1747766702260,14.3532457,2472.0,2471.9,0.32369043]
[1747766702953,14.3532457,2472.0,2471.9,1.13247043]
[1747766703144,13.5445057,2472.0,2471.9,1.13247043]
[1747766703347,11.5218107,2472.0,2471.9,1.13247043]
[1747766705652,11.5218107,2472.0,2471.9,3.15516542]
[1747766706352,12.3305507,2472.0,2471.9,3.15516542]
[1747766706660,19.3532457,2472.0,2471.9,0.32369043]
[1747766706858,0.80884,2471.7,2471.5,0.30471579]
[1747766707054,0.80884,2471.7,2471.6,0.80885]
[1747766707260,2.12182,2471.9,2471.5,0.30471579]
[1747766707560,12.32461397,2471.6,2471.5,1.11360579]
[1747766708059,14.92936397,2471.6,2471.5,1.11360579]
[1747766708459,14.92936397,2471.6,2471.5,1.1325167]
[1747766708656,3.2078,2471.7,2471.6,0.80887]
[1747766708960,14.72354397,2471.7,2471.6,0.80887]
[1747766709256,13.53868397,2471.7,2471.6,0.80887]
[1747766710052,0.00606673,2472.0,2471.9,0.80878]
[1747766710252,11.5218107,2472.0,2471.9,0.80878]
[1747766711058,11.5218107,2472.0,2471.9,1.1324067]
[1747766711258,13.5445057,2472.0,2471.9,1.1324067]
[1747766711457,14.3532457,2472.0,2471.9,1.1324067]
[1747766711754,13.5445057,2472.0,2471.9,1.1324067]
[1747766712055,0.00606673,2472.0,2471.9,1.1324067]
[1747766712255,3.2078,2472.4,2472.3,0.80864]
[1747766712562,5.4221,2472.8,2472.6,0.80852]
[1747766712750,11.51574397,2472.7,2472.6,0.80852]
[1747766712950,12.84094397,2472.7,2472.6,0.80852]
[1747766713154,14.86306397,2472.7,2471.9,5.5533067]
[1747766713359,11.51574397,2472.3,2472.2,0.80868]
[1747766713559,0.00606673,2472.5,2472.4,0.80861]
[1747766713960,13.5440957,2472.5,2472.4,0.80861]
[1747766714963,14.3526757,2472.5,2472.4,0.80861]
[1747766715357,13.5440957,2472.5,2472.4,0.80861]
[1747766716264,13.5440957,2472.5,2472.3,0.80863]
[1747766716467,11.51574397,2472.3,2472.1,0.00606673]
[1747766716765,13.69182397,2472.2,2472.1,0.00606673]
[1747766716961,11.51574397,2472.2,2472.1,0.81477673]
[1747766717264,13.53827397,2472.2,2472.1,0.81477673]
[1747766717656,11.51574397,2472.2,2472.1,4.14550673]
[1747766717858,0.00606673,2472.5,2472.4,0.80861]
[1747766718258,14.3526757,2472.5,2472.4,0.80861]
[1747766718463,14.3526757,2472.5,2472.3,0.80862]
[1747766718464,0.80863,2472.4,2472.3,0.80862]
[1747766718668,2.13873,2472.4,2472.3,0.80862]
[1747766718965,15.67683897,2472.4,2472.3,0.80862]
[1747766719168,14.86820897,2472.4,2472.3,0.80862]
[1747766719362,0.81465673,2472.5,2472.4,0.80861]
[1747766719363,0.00606673,2472.5,2472.4,0.80861]
[1747766719659,2.02081,2473.3,2472.7,2.02122]
[1747766719660,0.8611,2473.2,2472.7,2.02122]
[1747766719861,11.51574397,2473.0,2472.9,0.80845]
[1747766720256,16.74541897,2473.0,2472.3,16.12613734]
[1747766720459,0.80854,2472.7,2472.6,0.80853]
[1747766720855,14.34640397,2472.7,2472.6,0.80853]
[1747766721065,1.31986673,2472.9,2472.8,0.80848]
[1747766721268,2.12831673,2472.9,2472.8,0.80848]
[1747766721470,0.80848,2472.8,2472.7,2.14359]
[1747766721668,12.32422397,2472.8,2472.7,2.14359]
[1747766722069,0.81451673,2472.9,2472.8,0.80848]
[1747766722370,0.81451673,2472.9,2472.8,2.14358]
[1747766722670,2.83647673,2472.9,2472.8,2.14358]
[1747766722864,0.81451673,2472.9,2472.8,2.14358]
[1747766724171,0.80855,2472.6,2472.5,14.81829418]
[1747766724378,11.51574397,2472.6,2472.5,14.81829418]
[1747766724563,14.34649897,2472.6,2472.5,1.03929418]
[1747766724868,15.64869897,2472.6,2472.5,1.03930418]
[1747766725170,15.64869897,2472.6,2472.5,0.23072418]
[1747766725369,15.64869897,2472.6,2472.5,1.03930418]
[1747766725570,13.53794897,2472.6,2472.5,1.03930418]
[1747766725869,13.53794897,2472.6,2472.5,2.38750418]
[1747766726168,14.34649897,2472.6,2472.5,2.48027768]
[1747766726765,13.53794897,2472.6,2472.5,2.48027768]
[1747766726970,11.51574397,2472.6,2472.5,2.48027768]
[1747766727568,14.34649897,2472.6,2472.5,0.32349768]
[1747766727771,15.70859897,2472.6,2472.5,0.32349768]
[1747766727968,16.53499897,2472.6,2472.5,0.32349768]
[1747766728167,16.53499897,2472.6,2472.3,2.85946418]
[1747766728168,0.80861,2472.4,2472.3,1.8201]
[1747766728371,0.80864,2472.3,2472.2,0.23072418]
[1747766728570,13.68648397,2472.3,2472.2,1.03940418]
[1747766728874,15.70893397,2472.3,2472.2,0.23072418]
[1747766729065,15.70893397,2472.3,2472.2,1.03940418]
[1747766729466,15.70893397,2472.3,2472.2,0.23072418]
[1747766729773,0.80868,2472.2,2472.1,0.00606673]
[1747766729968,13.65212397,2472.2,2472.1,0.00606673]
[1747766730169,20.67465397,2472.2,2472.1,0.00606673]
[1747766730371,15.67465397,2472.2,2472.1,0.00606673]
[1747766730770,20.67465397,2472.2,2472.1,0.00606673]
[1747766730965,20.91896603,2472.2,2472.1,0.00606673]
[1747766732266,15.91891164,2472.2,2472.1,0.00606673]
[1747766732774,15.67465397,2472.2,2472.1,0.00606673]
[1747766733071,15.67465397,2472.2,2472.1,2.19807673]
[1747766733273,15.67465397,2472.2,2472.1,1.38936673]
[1747766733574,15.67465397,2472.2,2472.1,2.19807673]
[1747766734569,15.67465397,2472.2,2472.1,1.38936673]
[1747766734871,15.67465397,2472.2,2472.1,0.00606673]
[1747766735471,15.91891097,2472.2,2472.1,0.00606673]
[1747766737371,15.91887151,2472.2,2472.1,0.00606673]
[1747766737677,15.91907923,2472.2,2472.1,0.00606673]
[1747766738271,15.91911975,2472.2,2472.1,0.00606673]
[1747766739069,15.91913311,2472.2,2472.1,0.00606673]
[1747766740671,0.80887,2471.6,2471.5,0.23072418]
[1747766740875,15.53241397,2471.6,2471.5,0.23072418]
[1747766741074,22.79966321,2471.6,2471.5,0.23072418]
[1747766741372,22.79951885,2471.6,2471.5,0.23072418]
[1747766741576,24.12921885,2471.6,2471.5,0.23072418]
[1747766742169,18.88513397,2471.6,2471.5,1.03963418]
[1747766742370,7.36939,2471.6,2471.5,2.43053418]
[1747766742669,6.03969,2471.6,2471.5,2.43053418]
[1747766742872,0.80883,2471.8,2471.7,0.80881]
[1747766743071,0.80887,2471.7,2471.6,0.80885]
[1747766743482,2.83181,2471.7,2471.6,0.80885]
[1747766746279,2.02294,2471.7,2471.6,0.80885]
[1747766747176,0.80884,2471.7,2471.6,0.80885]
[1747766747381,2.83178,2471.7,2471.6,0.80885]
[1747766748281,3.2078,2471.9,2471.8,0.80881]
[1747766748490,16.74640397,2471.9,2471.8,0.80881]
[1747766748681,0.80877,2472.0,2471.8,2.022775]
[1747766748883,12.32444397,2472.2,2472.1,0.80868]
[1747766749393,2.83123,2472.2,2472.1,0.80868]
[1747766749579,2.83123,2472.2,2472.1,2.17268]
[1747766749780,2.83121,2472.2,2472.1,2.17268]
[1747766750481,0.80868,2472.2,2472.1,2.17268]
[1747766751089,2.83121,2472.2,2472.1,2.17268]
[1747766751981,3.2078,2472.6,2472.1,3.38653]
[1747766752185,12.32435397,2472.5,2472.4,0.80858]
[1747766752793,0.80864,2472.4,2472.3,0.80862]
[1747766753087,0.8086,2472.5,2472.4,0.80858]
[1747766753288,4.01638,2472.6,2472.5,0.80858]
[1747766753685,4.01638,2472.6,2472.5,2.830785]
[1747766754291,0.80865,2472.4,2472.3,0.80862]
[1747766754493,12.32441397,2472.3,2472.2,0.80865]
[1747766754692,11.51574397,2472.3,2472.2,0.80865]
[1747766754890,2.1287,2472.5,2472.2,2.34597604]
[1747766755191,11.51574397,2472.5,2472.4,0.80861]
[1747766755592,13.53802897,2472.5,2472.4,0.80861]
[1747766756293,14.34663897,2472.5,2472.4,0.80861]
[1747766756997,13.53802897,2472.5,2472.4,0.80861]
[1747766757297,14.34660897,2472.5,2472.4,0.80861]
[1747766757496,0.80861,2472.4,2472.3,2.22604]
[1747766757994,0.80861,2472.4,2472.3,4.24840499]
[1747766759096,0.80861,2472.4,2472.3,4.57193057]
[1747766760601,2.2141,2472.5,2472.4,0.80862]
[1747766760895,11.51574397,2472.5,2472.4,2.18592]
[1747766761093,13.53802897,2472.5,2472.4,2.18592]
[1747766762110,13.53802897,2472.5,2472.4,3.04012]
[1747766763408,14.34660897,2472.5,2472.4,3.04012]
[1747766763609,13.53802897,2472.5,2472.4,3.04012]
[1747766764310,14.34660897,2472.5,2472.4,3.04012]
[1747766765508,21.90411897,2472.5,2472.1,2.45552418]
[1747766765706,15.53222397,2472.2,2472.1,2.45552418]
[1747766765905,15.77697366,2472.2,2472.1,2.45552418]
[1747766766112,22.79950366,2472.2,2472.1,0.23072418]
[1747766766312,24.12030366,2472.2,2472.1,0.23072418]
[1747766767515,0.80881,2471.8,2471.7,0.80884]
[1747766767716,12.32455397,2471.8,2471.7,0.80884]
[1747766767915,13.53860397,2471.8,2471.7,0.80884]
[1747766769313,2.02286,2471.8,2471.7,0.80884]
[1747766769507,13.53860397,2471.8,2471.7,0.80884]
[1747766770315,3.2078,2471.9,2471.8,0.80881]
[1747766770513,14.72354397,2471.9,2471.8,2.13461]
[1747766770711,3.2078,2471.9,2471.8,4.157385]
[1747766771207,2.21555,2472.3,2471.8,7.365185]
[1747766771408,12.32452397,2471.9,2471.8,1.64937685]
[1747766771615,12.32452397,2471.9,2471.8,0.32357685]
[1747766771918,13.53851897,2471.9,2471.8,1.13238685]
[1747766772311,14.34729897,2471.9,2471.8,1.13238685]
[1747766772613,13.53851897,2471.9,2471.8,1.13238685]
[1747766772812,13.53851897,2471.9,2471.8,0.80881]
[1747766773116,0.80881,2471.8,2471.7,0.0723]
[1747766773315,16.90905397,2471.8,2471.7,0.0723]
[1747766773616,7.41617,2471.8,2471.7,0.0723]
[1747766773912,5.23066,2471.8,2471.7,0.88114]
[1747766774114,0.80881,2471.8,2471.7,0.0723]
[1747766774314,2.83167,2471.8,2471.7,0.88114]
[1747766775813,14.34741397,2471.8,2471.7,0.88114]
[1747766776015,14.34741397,2471.8,2471.7,0.0723]
[1747766776217,14.34741397,2471.8,2471.7,1.20474436]
[1747766776617,13.53860397,2471.8,2471.7,1.20474436]
[1747766776818,2.02286,2471.8,2471.7,1.20474436]
[1747766777115,3.2078,2472.1,2472.0,0.80875]
[1747766777716,18.76797897,2472.1,2471.8,2.2958]
[1747766778020,12.32452397,2471.9,2471.8,1.383]
[1747766778422,0.80881,2471.8,2471.7,0.30302418]
[1747766778618,16.85335397,2471.8,2471.7,0.30302418]
[1747766778814,18.87621397,2471.8,2471.7,0.30302418]
[1747766779324,18.87621397,2471.8,2471.7,0.0723]
[1747766780015,18.87621397,2471.8,2471.7,2.29614]
[1747766780213,18.87621397,2471.8,2471.7,1.4873]
[1747766780520,18.87621397,2471.8,2471.7,0.0723]
[1747766780723,19.73861397,2471.8,2471.7,0.0723]
[1747766781123,16.74640397,2471.8,2471.7,0.88114]
[1747766781614,3.2078,2471.8,2471.7,2.904]
[1747766782022,4.5422,2472.2,2472.1,0.80871]
[1747766782214,3.2078,2472.2,2472.1,0.80871]
[1747766782521,4.0164,2472.5,2472.4,0.80862]
[1747766782716,3.2078,2472.5,2472.4,0.80862]
[1747766782921,6.33566791,2472.9,2472.8,0.80848]
[1747766783117,18.65986188,2472.9,2472.8,0.80848]
[1747766783321,20.68182188,2472.9,2472.8,0.80848]
[1747766784017,6.33566791,2472.9,2472.8,4.11804]
[1747766784212,7.14411791,2472.9,2472.8,4.11804]
[1747766784410,0.80852,2472.7,2472.6,0.00606673]
[1747766784614,12.32426397,2472.7,2472.6,0.00606673]
[1747766784816,14.34638397,2472.7,2472.6,0.00606673]
[1747766785024,14.5909166,2472.7,2472.6,0.00606673]
[1747766785225,16.7855166,2472.7,2472.6,0.00606673]
[1747766786110,0.8905,2472.8,2472.7,0.8085]
[1747766786111,0.80849,2472.8,2472.7,0.8085]
[1747766786317,13.53782397,2472.8,2472.7,2.0961]
[1747766786516,2.02208,2472.8,2472.7,2.0961]
[1747766788018,3.21386673,2472.9,2472.8,0.80848]
[1747766788219,3.21386673,2472.9,2472.8,2.15248]
[1747766788421,3.21386673,2472.9,2472.8,4.17444]
[1747766788622,3.21386673,2472.9,2472.8,2.15248]
[1747766789122,3.21386673,2472.9,2472.8,4.17444]
[1747766790829,0.00606673,2472.9,2472.8,4.17444]
[1747766791120,3.2078,2473.2,2473.1,0.80839]
[1747766791324,4.01616,2473.2,2473.1,0.80839]
[1747766791516,4.01617,2473.2,2473.1,0.80839]
[1747766792024,3.2078,2473.2,2473.1,0.80839]
[1747766792231,4.01616,2473.2,2473.1,0.80839]
[1747766792731,0.80839,2473.1,2473.0,1.3508]
[1747766792933,13.73383397,2473.1,2473.0,1.3508]
[1747766793131,15.75562897,2473.1,2473.0,1.3508]
[1747766793731,15.75562897,2473.1,2472.7,0.9332]
[1747766793732,0.80849,2472.8,2472.7,0.0725]
[1747766793926,0.80849,2472.8,2472.7,0.88102]
[1747766793927,15.53203397,2472.8,2472.7,0.88102]
[1747766794226,13.53778397,2472.8,2472.7,0.88102]
[1747766794531,17.55407397,2472.8,2472.7,0.0725]
[1747766794832,17.55407397,2472.8,2472.7,0.88102]
[1747766795127,22.55407397,2472.8,2472.7,0.0725]
[1747766795329,22.55407397,2472.8,2472.3,0.23072418]
[1747766795330,0.80862,2472.4,2472.3,0.23072418]
[1747766795630,0.80862,2472.4,2472.0,0.23072418]
[1747766795631,0.80872,2472.1,2472.0,0.23072418]
[1747766795819,15.53226397,2472.1,2472.0,0.23072418]
[1747766796022,16.74615897,2472.1,2472.0,0.23072418]
[1747766796329,17.55487897,2472.1,2472.0,0.23072418]
[1747766796931,0.80877,2472.0,2471.8,2.12306673]
[1747766797231,12.32452397,2471.9,2471.8,0.00606673]
[1747766797622,14.34729897,2471.9,2471.8,0.00606673]
[1747766797931,15.76489897,2471.9,2471.8,0.00606673]
[1747766798232,15.76489897,2471.9,2471.5,0.6069]
[1747766798233,0.80888,2471.6,2471.5,0.6069]
[1747766798530,15.53242397,2471.6,2471.5,0.6069]
[1747766798729,58.35544397,2471.6,2471.5,0.6069]
[1747766799331,59.77754397,2471.6,2471.5,0.6069]
[1747766800437,64.77754397,2471.6,2471.5,0.6069]
[1747766800729,71.21656397,2471.6,2471.5,0.6069]
[1747766800933,73.44760397,2471.6,2471.5,0.6069]
[1747766801331,48.26186,2471.6,2471.5,0.6069]
[1747766801531,58.35550397,2471.6,2471.5,0.6069]
[1747766802632,63.35550397,2471.6,2471.5,0.6069]
[1747766804041,58.35550397,2471.6,2471.5,0.6069]
[1747766804429,72.02750397,2471.6,2471.5,0.6069]
[1747766805323,0.80913,2471.0,2470.9,2.2259]
[1747766805523,0.80917,2470.9,2470.8,1.3578]
[1747766805738,0.80927,2470.6,2470.5,2.50049]
[1747766805929,4.01707,2470.6,2470.5,2.50049]
[1747766806236,3.2078,2470.6,2470.5,4.52433]
[1747766806627,3.2078,2470.6,2470.4,2.2263]
[1747766806628,0.8093,2470.5,2470.4,2.2263]
[1747766806929,11.51574397,2470.5,2470.4,2.2263]
[1747766807127,3.2078,2470.6,2470.5,0.8093]
[1747766807331,3.2078,2470.6,2470.5,2.1671]
[1747766807534,3.2078,2470.6,2470.5,4.19094]
[1747766808137,4.01707,2470.6,2470.5,3.38164]
[1747766808334,3.2078,2470.6,2470.5,2.1671]
[1747766808634,5.23164,2470.6,2470.5,2.1671]
[1747766808836,3.2078,2470.6,2470.5,2.1671]
[1747766809240,4.01707,2470.6,2470.5,1.3578]
[1747766809438,17.55665397,2470.6,2470.5,1.3578]
[1747766809738,0.80943,2470.1,2470.0,0.49999831]
[1747766809943,3.2078,2470.1,2470.0,2.72755831]
[1747766810148,3.2078,2470.1,2470.0,3.94234831]
[1747766810437,17.55722397,2470.1,2470.0,1.91809831]
[1747766811137,17.55722397,2470.1,2470.0,8.31e-06]
[1747766811433,17.55722397,2470.1,2469.9,0.32377012]
[1747766811434,0.80969,2469.3,2469.2,0.75261574]
[1747766811633,0.80976,2469.1,2469.0,0.23324756]
[1747766812027,52.92367397,2469.1,2469.0,0.23324756]
[1747766812228,57.92367397,2469.1,2469.0,0.23324756]
[1747766812433,0.80979,2469.0,2468.9,1e-08]
[1747766812634,0.80986,2468.8,2468.7,0.46673503]
[1747766812841,22.96684397,2468.8,2468.7,0.46673503]
[1747766813038,25.80201897,2468.8,2468.7,0.46673503]
[1747766813339,0.80992,2468.6,2468.5,1.2897]
[1747766813529,13.30656397,2468.6,2468.5,1.2897]
[1747766813727,5.23328,2468.6,2468.5,2.09965]
[1747766814935,0.81007,2468.2,2468.0,1.3836]
[1747766815243,12.49664397,2468.1,2468.0,1.3836]
[1747766815435,3.2078,2468.1,2466.9,3.2078]
[1747766815735,0.81055,2466.7,2465.8,1.49935101]
[1747766815940,0.81068,2466.3,2465.8,1.49935101]
[1747766816240,13.30732397,2466.3,2465.8,1.49935101]
[1747766816533,14.52401398,2466.3,2465.8,1.49935101]
[1747766816739,5.23517001,2466.3,2465.8,1.49935101]
[1747766816932,40.8,2466.7,2466.2,8.07604709]
[1747766817133,40.8,2466.7,2466.4,3.2078]
[1747766817339,40.8,2466.7,2466.5,1.3836]
[1747766817540,40.8,2466.7,2466.6,0.81058]
[1747766818031,3.2078,2466.9,2466.6,2.83762]
[1747766818232,3.2078,2466.9,2466.7,2.15154]
[1747766818430,3.2078,2466.9,2466.8,1.341]
[1747766818625,44.0078,2466.9,2466.8,1.341]
[1747766818829,46.845155,2466.9,2466.8,1.341]
[1747766819039,6.045155,2466.9,2466.8,1.341]
[1747766819335,2.02631,2466.8,2465.7,3.2078]
[1747766819540,3.2078,2466.2,2465.8,1.341]
[1747766819738,10.09970397,2465.8,2465.2,3.2078]
[1747766819935,3.2078,2465.9,2465.1,4.00235104]
[1747766819936,10.09972397,2465.7,2465.1,4.00235104]
[1747766820235,10.09972397,2465.7,2464.9,4.1172]
[1747766820236,10.09972397,2465.7,2465.6,0.63426652]
[1747766820436,10.09972397,2465.7,2464.7,2.02801]
[1747766820437,16.31670897,2465.7,2464.5,3.2078]
[1747766820634,16.31670897,2465.7,2463.1,0.36]
[1747766820635,3.2078,2463.6,2463.1,0.36]
[1747766820835,3.19332071,2462.2,2459.5,18.07513694]
[1747766821033,3.2078,2460.4,2457.7,2.03379]
[1747766821229,3.2078,2459.6,2458.6,3.2078]
[1747766821431,0.00609187,2461.1,2459.3,17.487]
[1747766821432,15.704395,2461.1,2459.3,17.487]
[1747766821635,3.2078,2459.5,2459.3,41.69609763]
[1747766821846,3.2078,2460.6,2459.4,17.69569465]
[1747766822040,6.699,2460.3,2460.2,16.85084465]
[1747766822235,0.81266,2460.3,2460.2,18.346]
[1747766822440,2.032315,2460.3,2460.2,40.37734763]
[1747766822744,4.01997,2461.8,2461.0,16.85084465]
[1747766822941,3.2078,2461.8,2461.2,0.00609187]
[1747766823145,3.2078,2462.5,2461.7,16.85084465]
[1747766823344,3.2078,2462.5,2462.3,16.85084465]
[1747766823535,2.030785,2462.5,2462.3,16.85084465]
[1747766823840,2.030785,2462.5,2461.7,19.11]
[1747766823841,4.2068,2462.4,2461.3,0.00609187]
[1747766824038,0.00609187,2462.6,2462.1,15.64802465]
[1747766824340,3.2078,2462.2,2461.3,0.00609187]
[1747766824544,3.2078,2462.2,2462.1,15.64802465]
[1747766824746,3.2078,2462.2,2462.0,15.64802465]
[1747766824945,3.2078,2462.2,2460.9,0.8716]
[1747766824946,3.2078,2460.8,2459.1,3.2078]
[1747766825145,3.2078,2460.4,2459.2,4.07939636]
[1747766825341,40.8798,2462.1,2459.2,4.07939636]
[1747766825342,3.2078,2460.2,2459.2,4.07939636]
[1747766825541,3.2078,2460.4,2459.9,3.2078]
[1747766825740,3.2078,2460.4,2460.0,3.20779636]
[1747766825946,3.21389187,2460.4,2459.3,3.20779636]
[1747766826145,0.00609187,2460.4,2460.3,4.02045636]
[1747766826448,3.2078,2461.1,2460.3,23.213]
[1747766826647,3.2078,2461.7,2461.0,3.2078]
[1747766826848,3.2078,2462.2,2461.9,0.81212]
[1747766827045,3.2078,2462.6,2461.7,0.81217]
[1747766827349,0.00609187,2462.4,2461.9,0.00609187]
[1747766827551,1.318,2462.2,2462.1,0.81206]
[1747766827751,1.318,2462.2,2461.9,0.00609187]
[1747766827948,1.318,2462.2,2461.9,2.84904187]
[1747766828151,1.318,2462.2,2462.0,23.213]
[1747766828643,1.318,2462.2,2462.0,2.030785]
[1747766828947,0.00609187,2462.4,2462.0,2.030785]
[1747766829244,1.318,2462.3,2462.1,23.221]
[1747766829447,1.318,2462.3,2462.2,0.81203]
[1747766829850,0.00609187,2462.4,2462.3,0.812]
[1747766830146,3.2078,2463.4,2462.3,2.03058]
[1747766830349,3.2078,2463.4,2462.8,3.2078]
[1747766830545,5.23797,2463.4,2462.0,3.2078]
[1747766830743,3.2078,2462.5,2462.0,3.2078]
[1747766830939,0.9405,2462.5,2462.1,0.81204]
[1747766831246,3.2078,2462.2,2461.9,0.00609187]
[1747766831754,1.3284,2462.4,2461.9,2.03692187]
[1747766832051,1.3284,2462.4,2461.9,2.84903187]
[1747766832348,1.3284,2462.4,2462.2,3.2078]
[1747766832547,0.81204,2462.2,2461.9,2.03692187]
[1747766832747,0.81204,2462.2,2461.9,0.00609187]
[1747766832748,3.2078,2462.2,2461.9,0.00609187]
[1747766832941,0.8121,2462.0,2461.9,0.00609187]
[1747766833140,5.23863,2462.2,2461.1,3.2078]
[1747766833342,4.01988,2462.1,2461.3,3.2078]
[1747766833543,3.2078,2462.1,2461.9,0.81211]
[1747766833750,3.2078,2462.1,2462.0,0.8121]
[1747766833941,1.3284,2462.4,2462.0,3.2078]
[1747766834146,1.3284,2462.4,2462.3,0.812]
[1747766834346,0.94659187,2462.5,2462.4,0.81197]
[1747766834541,0.00609187,2462.5,2462.3,3.2078]
[1747766834750,3.2078,2462.4,2462.1,0.8586]
[1747766834955,3.2078,2462.4,2460.8,3.2078]
[1747766835255,0.81228,2461.5,2461.0,0.8124]
[1747766835446,0.81231,2461.4,2461.0,0.81243]
[1747766835646,3.2078,2461.7,2461.1,26.4378]
[1747766835842,1.8274,2462.4,2462.0,0.8121]
[1747766836044,1.8274,2462.4,2462.3,0.812]
[1747766836243,3.2078,2463.0,2462.4,0.81197]
[1747766836451,0.81188,2462.7,2462.3,2.03054]
[1747766836654,0.81188,2462.7,2462.4,24.04197]
[1747766836860,3.2078,2463.0,2462.1,1.7366]
[1747766837048,3.8009,2462.4,2462.1,1.7366]
[1747766837254,3.8009,2462.4,2461.5,3.2078]
[1747766837556,1.0961,2462.4,2461.5,3.2078]
[1747766837756,0.81214,2461.9,2461.7,0.81219]
[1747766837953,3.2078,2462.0,2461.7,0.8122]
[1747766838147,5.238795,2462.0,2461.3,23.23]
[1747766838355,3.2078,2462.0,2461.2,3.2078]
[1747766838549,3.2078,2462.0,2461.4,0.81228]
[1747766838755,3.2078,2462.0,2461.5,0.81224]
[1747766838956,3.2078,2461.6,2461.4,23.23]
[1747766839456,3.2078,2461.6,2461.5,0.81226]
[1747766839751,3.2078,2461.6,2461.4,2.03127999]
[1747766839961,0.81226,2461.5,2461.4,2.03127999]
[1747766840157,0.81226,2461.5,2460.8,0.8931]
[1747766840158,0.81239,2461.2,2460.8,0.8931]
[1747766840357,3.2078,2461.0,2460.8,0.8931]
[1747766840757,2.03146,2460.6,2459.6,3.2078]
[1747766841062,0.00609187,2460.3,2460.2,0.81269]
[1747766841353,3.21389187,2460.3,2459.7,0.9209]
[1747766841559,3.2078,2459.9,2459.4,3.2078]
[1747766841748,3.2078,2459.6,2459.4,0.81293]
[1747766841952,0.81294,2459.5,2458.7,2.03296]